Cogmind - Beta 13 @@@ ROGUE MODE // 2024.03.24 @ 06:10:41 Player: f_ Result: Destroyed by as-93863 with Assembled Heavy Rifle Performance ------------- Evolutions (0) 0 Regions Visited (2) 400 Robots Destroyed (28) 140 Value Destroyed (593) 593 Prototype IDs (2) 40 Alien Tech Used (0) 0 Bonus (-27) -27 TOTAL SCORE: 1146 Bonus ------- Friendly Fire -27 Cogmind --------- Core Integrity 0/250 Matter 300/300 Energy 45/250 System Corruption 0% Temperature Cool (86) Movement Rolling (120) Ox2 Location -10/Mines Parts ------- > --- POWER (1) -------- Ion Engine > --- PROPULSION (2) --- Armored Wheel > --- UTILITY (2) ------ Large Storage Unit ECM Suite > --- WEAPON (2) ------- Improved EM Shotgun > --- INVENTORY (15) --- Ion Engine Armored Wheel Armored Wheel Signal Interpreter Hacking Suite Recalibrator Field Recycling Unit (0) Improved EM Shotgun Grenade Launcher Datajack Hammer Peak State ------------ > --- POWER ------------ Ion Engine > --- PROPULSION ------- Armored Wheel Armored Wheel > --- UTILITY ---------- Large Storage Unit ECM Suite > --- WEAPON ----------- Improved EM Shotgun Improved EM Shotgun > --- INVENTORY -------- Ion Engine Armored Wheel Armored Wheel Signal Interpreter Hacking Suite Recalibrator Field Recycling Unit Improved EM Shotgun Grenade Launcher Datajack Hammer [Rating: 15] Favorites ----------- Power Ion Engine Engine Ion Engine Propulsion Compact Wheel Wheel Compact Wheel Utility ECM Suite Device ECM Suite Storage Small Storage Unit Processor Transport Network Coupler Weapon Assault Rifle Energy Gun Small Laser Ballistic Gun Assault Rifle Build | -11 -10 -10 ------- Run | Yrd Mat Min Slots Evolved . | . . . Power . | . . . Propulsion . | . . . Utility . | . . . Weapon . | . . . Parts Attached 25 | 6 19 . Power 4 | 2 2 . Engine 4 | 2 2 . Core . | . . . Reactor . | . . . Propulsion 7 | 2 5 . Treads . | . . . Leg . | . . . Wheel 7 | 2 5 . Hover . | . . . Flight . | . . . Utility 7 | 1 6 . Device 3 | . 3 . Storage 3 | 1 2 . Processor 1 | . 1 . Hackware . | . . . Protection . | . . . Artifact . | . . . Weapon 7 | 1 6 . Energy Gun 4 | . 4 . Energy Cannon . | . . . Ballistic Gun 3 | 1 2 . Ballistic Cannon . | . . . Launcher . | . . . Special Weapon . | . . . Impact Weapon . | . . . Slashing Weapon . | . . . Piercing Weapon . | . . . Special Melee Weapon . | . . . Unidentified Prototypes . | . . . Parts Lost 3 | . 1 2 Power . | . . . Propulsion 1 | . . 1 Utility . | . . . Weapon 2 | . 1 1 Highest Loss Streak 2 | . 1 2 To Critical Strikes . | . . . Average Slot Usage (%) 94 | . 93 98 Engine 14 | . 14 14 Wheel 27 | . 28 27 Device 9 | . 8 14 Storage 14 | . 14 14 Energy Gun 16 | . 14 27 Ballistic Gun 10 | . 13 . Naked Turns . | . . . Heaviest Build 33 | 11 33 33 Greatest Support 26 | 26 26 24 Greatest Overweight (x) 2 | . 2 1 Average Overweight (x) . | . . 1 Largest Inventory Capacity 15 | 8 15 15 Average Capacity 10 | 7 9 15 Most Carried 11 | 4 11 11 Average Carried 8 | 2 7 11 Final Capacity 15 | 8 15 15 Final Carried 11 | 3 11 11 Class Distribution -------------------- 82% | Mutant 17% | Scavenger-Mutant Dominant Class ---------------- Mutant | -10/Materials Mutant | -10/Mines Resources | -11 -10 -10 ----------- Run | Yrd Mat Min Matter Collected 698 | 155 454 89 Remotely . | . . . Salvage Created 1039 | . 837 202 Parts 62 | . 56 6 Haulers Intercepted 2 | . 2 . Recyclers Shooed 1 | . 1 . Parts Field Recycled . | . . . Retrieved Matter . | . . . Parts Self-Destructed . | . . . Prevented . | . . . Kills | -11 -10 -10 ------- Run | Yrd Mat Min Combat Hostiles Destroyed 21 | . 15 6 Guns 21 | . 15 6 Classes Destroyed 10 | . 7 3 Tunneler 1 | . . 1 Hauler 2 | . 2 . Recycler 4 | . 4 . Mechanic 1 | . 1 . Operator 1 | . 1 . Watcher 1 | . 1 . Swarmer 6 | . 6 . Grunt 11 | . 9 2 Demolisher 1 | . . 1 Assembled 3 | . . 3 Best Kill Streak 4 | . 4 2 Combat Bots Only 4 | . 4 2 Max Kills in Single Turn 2 | . 2 2 Gunslinging 1 | . 1 1 Exploded . | . . . Melee . | . . . Uniques/NPCs Destroyed . | . . . Combat | -11 -10 -10 -------- Run | Yrd Mat Min Hostile Shots Fired 73 | . 50 23 Missed 16 | . 12 4 Damage Taken 975 | . 423 552 Core 260 | . 118 142 Absorbed by Shields . | . . . Core Remaining (%) 100 | 100 . . Volleys Fired 97 | . 79 18 Largest 2 | . 2 2 Hottest 90 | . 60 90 Shots Fired 181 | . 152 29 Gun 181 | . 152 29 Cannon . | . . . Launcher . | . . . Special . | . . . Kinetic 95 | . 95 . Thermal 57 | . 57 . Explosive . | . . . Electromagnetic 29 | . . 29 Robot Hit Streak 17 | . 17 8 Robot Miss Streak 6 | . 6 6 Penetration Max . | . . . Secondary Targets 3 | . 2 1 Max Gunslinging Chain 1 | . 1 1 Shots Hit Robots 112 | . 90 22 Core Hits 65 | . 46 19 Critical Kills . | . . . Critical Parts Destroyed . | . . . Critical Strikes . | . . . Melee Attacks . | . . . Impact . | . . . Slashing . | . . . Piercing . | . . . Sneak Attacks . | . . . Combat Hostiles . | . . . Follow-up Attacks . | . . . Damage Inflicted 1431 | . 1028 403 Guns 1393 | . 1028 365 Cannons . | . . . Explosions 38 | . . 38 Melee . | . . . Ramming . | . . . Kinetic 670 | . 670 . Thermal 396 | . 358 38 Explosive . | . . . Electromagnetic 365 | . . 365 Impact . | . . . Slashing . | . . . Piercing . | . . . Highest Corruption . | . . . Average Corruption . | . . . Corruption Purged . | . . . Corruption Blocked . | . . . Overload Shots . | . . . Overflow Damage . | . . . Projectiles . | . . . Explosions . | . . . Melee . | . . . Knockbacks . | . . . Impact . | . . . Kinetic . | . . . Secondary . | . . . Self-Inflicted Damage 36 | . . 36 Shots 1 | . . 1 Rammed . | . . . Targets Rammed . | . . . Kicked . | . . . Crushed . | . . . Highest Temperature 160 | . 30 160 Average Temperature 36 | . 17 59 Received Heat Transfer 236 | . 150 86 Siege Activations . | . . . Robots Corrupted . | . . . Combat Hostiles . | . . . Parts Fried . | . . . Impact Corruptions . | . . . Robots Melted . | . . . Combat Hostiles . | . . . Parts Melted . | . . . Heat Transferred 875 | . 825 50 Parts Sabotaged . | . . . Parts Stolen . | . . . Parts Stripped . | . . . Power Chain Reactions 1 | . . 1 Alert | -11 -10 -10 ------- Run | Yrd Mat Min Peak Influence 349 | . 349 132 Initial 62 | . . 62 Average 168 | . 190 108 Maximum Alert Level 1 | . 1 . Low Security (%) 65 | 100 55 100 Level 1 34 | . 44 . Level 2 . | . . . Level 3 . | . . . Level 4 . | . . . Level 5 . | . . . High Security . | . . . Max Security . | . . . Squads Dispatched 2 | . 2 . Investigation 1 | . 1 . Extermination . | . . . Reinforcement 1 | . 1 . Assault . | . . . Garrison . | . . . Intercept . | . . . Searches Triggered . | . . . Construction Impeded . | . . . Haulers Reinforced . | . . . Active Scanning Responses . | . . . Cargo Convoy Interrupts . | . . . Stealth | -11 -10 -10 --------- Run | Yrd Mat Min Distress Signals 2 | . 2 . Communications Jammed . | . . . Distress Signals . | . . . Times Spotted 45 | . 29 16 Peak Tracking Total 6 | . 5 6 Tactical Retreats 5 | . 3 2 Traps | -11 -10 -10 ------- Run | Yrd Mat Min Traps Triggered 1 | . 1 . Indirectly . | . . . Trap Hack Attempts . | . . . Triggered . | . . . Disarmed . | . . . Reprogrammed . | . . . Reused . | . . . Traps Extracted . | . . . Installed . | . . . Triggered . | . . . Machines | -11 -10 -10 ---------- Run | Yrd Mat Min Machines Disabled . | . . . Max in Single Turn . | . . . Machines Repaired . | . . . Machines Dismantled . | . . . Machines Sabotaged . | . . . Overloaded Fab Kills . | . . . Hacking | -11 -10 -10 --------- Run | Yrd Mat Min Machines Accessed 5 | . 5 . Terminals 4 | . 4 . Fabricators . | . . . Repair Stations . | . . . Recycling Units 1 | . 1 . Scanalyzers . | . . . Garrison Access . | . . . Total Hacks 11 | . 11 . Successful 5 | . 5 . Failed 6 | . 6 . Catastrophic 2 | . 2 . Database Lockouts . | . . . Manual . | . . . Terminals 9 | . 9 . Fabricators . | . . . Repair Stations . | . . . Recycling Units 2 | . 2 . Scanalyzers . | . . . Garrison Access . | . . . Terminal Hacks 3 | . 3 . Prototype ID Bank 1 | . 1 . Emergency Access Points 1 | . 1 . Alert Level 1 | . 1 . Fabricator Hacks . | . . . Repair Station Hacks . | . . . Recycling Unit Hacks 2 | . 2 . Report Inventory 1 | . 1 . Retrieve Components 1 | . 1 . Scanalyzer . | . . . Garrison Access Hacks . | . . . Unauthorized Hacks . | . . . Terminals . | . . . Fabricators . | . . . Repair Stations . | . . . Recycling Units . | . . . Scanalyzers . | . . . Garrison Access . | . . . Data Cores Recovered . | . . . Used . | . . . Hacking Detections 3 | . 3 . Full Trace Events 1 | . 1 . Feedback Events . | . . . Feedback Blocked . | . . . Robot Schematics Acquired . | . . . Robots Built . | . . . Authchips . | . . . Time . | . . . Total Robot Build Rating . | . . . Part Schematics Acquired . | . . . Parts Built . | . . . Authchips . | . . . Time . | . . . Total Part Build Rating . | . . . Parts Repaired . | . . . Time . | . . . Parts Recycled . | . . . Recycled Matter . | . . . Retrieved Matter . | . . . Retrieved Components 7 | . 7 . Parts Scanalyzed . | . . . Part Schematics Acquired . | . . . Parts Damaged . | . . . Bothacking | -11 -10 -10 ------------ Run | Yrd Mat Min Used RIF Installer . | . . . Robots Hacked . | . . . Non-combat . | . . . Combat . | . . . Robot Hacks Applied . | . . . Relay Couplers Released . | . . . Fabnet Peak Effective % . | . . . Robots Rewired . | . . . Allies Hacked . | . . . Hacks Repelled . | . . . Allies | -11 -10 -10 -------- Run | Yrd Mat Min Total Allies . | . . . Largest Group . | . . . Highest-Rated Group . | . . . Highest-Rated Ally . | . . . Total Orders . | . . . Ally Attacks . | . . . Total Damage . | . . . Kills . | . . . Allies Corrupted . | . . . Allies Melted . | . . . Intel | -11 -10 -10 ------- Run | Yrd Mat Min Robot Analysis Total . | . . . Derelict Logs Recovered 1 | . . 1 Drone Launches . | . . . Drone Recoveries . | . . . Exploration | -11 -10 -10 ------------- Run | Yrd Mat Min Turns Passed 1203 | 45 938 220 Spaces Moved 839 | 38 662 139 Core 9 | 9 . . Treads . | . . . Legs . | . . . Wheels 830 | 29 662 139 Hover . | . . . Flight . | . . . Fastest Speed 50 | 50 90 105 Average Speed 93 | 80 91 105 Slowest Speed 120 | 90 120 105 Overloaded Moves . | . . . Propulsion Burnouts . | . . . Robots Hopped . | . . . Cave-ins Triggered . | . . . Exploration Rate (%) 47 | 4 91 46 Regions Visited 2 Branch Regions 1 Pre-discovered Areas 1 | . . 1 Known Exits Taken . | . . . Unknown Exits Taken 2 | 1 1 . Scrap Searched . | . . . Spaces Dug . | . . . Terrain Destroyed 5 | . . 5 Melee . | . . . Projectile . | . . . AOE 5 | . . 5 Terrain Rammed . | . . . Walls Destroyed . | . . . Machines Disabled . | . . . Actions | -11 -10 -10 --------- Run | Yrd Mat Min Total 1086 | 51 850 185 Wait 73 | . 45 28 Move 837 | 37 661 139 Hop . | . . . Pick Up 31 | 8 23 . Fast Attach 6 | . 6 . Attach 8 | 5 3 . Detach . | . . . Swap 11 | 1 10 . Drop 23 | . 23 . Fire 97 | . 79 18 Melee . | . . . Ram . | . . . Kick . | . . . Crush . | . . . Escape Stasis . | . . . Rewire . | . . . Trap . | . . . Miscellaneous . | . . . Route ------- -11/Scrapyard -10/Materials (discovered 5 exits: [*Mat x3] / [*Min x2]) -10/Mines History --------- Turn | Location | Event 17 | -11/Scrapyard | Discovered new exit (range 15) 46 | -11/Scrapyard | Entered Materials 159 | -10/Materials | Discovered new exit (range 5) 312 | -10/Materials | Build established: Mutant 452 | -10/Materials | Discovered new exit (range 5) 577 | -10/Materials | Discovered new exit (range 7) 682 | -10/Materials | Discovered new exit (range 7) 813 | -10/Materials | Discovered new exit (range 8) 984 | -10/Materials | Entered Mines 1033 | -10/Mines | Core integrity fell below 50% 1120 | -10/Mines | Assembled infested the area 1120 | -10/Mines | Learned location of Zion (-7) 1125 | -10/Mines | Assisted by a Guerilla fighting off Assembled 1193 | -10/Mines | Core integrity fell below 20% 1204 | -10/Mines | Destroyed by as-93863 with Assembled Heavy Rifle Last Messages --------------- 01179_ C-30 ARC bursts open, deploying its payload. 01179_ D-53 Grenadier unfolds itself. 01180_ J4-ZZL(h) suffers critical hit (Burn). 01180_ HV Slug penetrates as-46759. 01181_ J4-ZZL(h) critical meltdown. 01181_ as-14148 destroyed. 01181_ as-46759 destroyed. 01181_ as-14468 destroyed. 01190_ as-00397 misfires. 01190_ Imp. EM Shotgun destroyed. 01190_ as-00397 destroyed. 01192_ Arm. Wheel destroyed. 01193_ The unstable cave ceiling collapses. 01195_ U-05 Engineer builds a Wall. 01195_ D-53 Grenadier destroyed. 01198_ U-05 Engineer lays Concrete. 01200_ The unstable cave ceiling collapses. 01200_ U-05 Engineer lays Concrete. 01203_ as-20593 destroyed. Map ----- +----------------------------------------------------+ | ???????????????????????????????????????????????? | | ???????????????????????????????????????????????? | | ???????????????????????????????????????????????? | | ???????????????????????????????????????????????? | | ???????????????????????????????????????????????? | | ???????????????????????????????????????????????? | | ???????????????????????????????????????????????? | | ???????????????????????????????????????????????? | | ???????????????????????????????????????????????? | | ???????????????????????????????????????????????? | | ???????????????????????????????????????????????? | | ???????????????????????????????????????????????? | | ???????????????????????????????????????????????? | | ?????????????????????????????????????????###???? | | ????????????????????????????????????????# ##??? | | ????????????#?????????????????????????## #??? | | ???????????# ?????????#######????????# ##?? | | ???????????# ??????### ##??????## #?? | | ????????????# ?????#; #????### #?? | | ??????????#### ##??# #???## #?????? | | ??????????* ### % % ##??# ##?????? | | ???????????? # a #?## """ ##?????? | | ??????????????# = ] ### """ #?????? | | ???????????????# !% #### """ #?????? | | ??????????????????# %% #### #?????? | | ???????????????????# @ % # ### ##?????? | | ???????????????????## #?## #??????? | | ????????????????? *% % #??# #??????? | | ???????????????# #??# #??????? | | ???????????????# ## u#### #??????? | | ???????????????# #?# % #??????? | | ??????????????# ?? % t #??????? | | ????????????? ??? ##### #??????? | | ???????????? #????# #??# #??????? | | ??????????? #???? ##??# #??????? | | ???????????? ### #???? ####???# #??????? | | ???????????? ##??# ???? ???????#!#????# ? | | ?????????????? #???? ???? ???????#%##???? | | ???????????????????? ???# ??######=!##??? | | ????????????????????# ???? ?## ## = #???# | | ?????????????????????# ????#?# #????# | | ????????????????????????????????# #???## | | ????????????????????????????????## ##?### | | ?????????????????????????????????#### #### | | ????????????????????????????????????## ## | | ?????????????????????????????????????# | | ?????????????????????????????????????## | | ??????????????????????????????????????#### | | ?????????????????????????????????????????## | | ??????????????????????????????????????????##### | +----------------------------------------------------+ Best States ------------- Heat Dissipation 25 Energy Generation 10 Energy Capacity 250 Matter Stores 300 Matter Capacity 300 Sight Range 16 Terrain Scan Density 10 ECM Strength 1 Evasion (%) 50 Item Schematics ----------------- None Robot Schematics ------------------ None Fabricated ------------ Nothing Alien Tech Used ----------------- None Achievements -------------- None Challenges ------------ None Game ------ Seed FortressTransmissionBattery Manual? 0 Play Time 00:17:04 Cumulative 50.9 hours Start 2024.03.24 @ 05:52:27 End 2024.03.24 @ 06:10:41 Sessions 1 Manual Loads 0 Difficulty Rogue Special Mode None Game No. 41 Rogue 39 Adventurer 0 Explorer 2 Win Type - Total 0 Types 0/0/0/0/0/0/0/0/0 Lore% 16 Gallery% 30 Achievement% 20 Wizard Run 0 Options --------- Layout 1 ASCII 0 Keyboard 0 Movement Mouse Keybinds 0 Fullscreen 2 Font 48/Tamsyn Map View 50x35 Zoom Use 0% Tactical HUD 1 Map Filters NONE Filters NONE Steam 1 RUN: 8902e78c-0a12-41b8-8d4a-7757c16980e9